Cogmind - Beta 14 @@@ ROGUE MODE // 2024.08.09 @ 18:36:40 Player: APerTAS Result: Destroyed self with Rocket Launcher Performance ------------- Evolutions (0) 0 Regions Visited (2) 400 Robots Destroyed (10) 50 Value Destroyed (271) 271 Prototype IDs (0) 0 Alien Tech Used (0) 0 Bonus (0) 0 TOTAL SCORE: 721 Bonus ------- None Cogmind --------- Core Integrity 0/250 Matter 183/300 Energy 85/100 System Corruption 0% Temperature Cool (0) Movement Core (100) Ox1 Location -10/Mines Parts ------- > --- POWER (1) -------- (None) > --- PROPULSION (2) --- (None) > --- UTILITY (2) ------ Signal Interpreter Hacking Suite > --- WEAPON (2) ------- Rocket Launcher > --- INVENTORY (5) ---- (None) Peak State ------------ > --- POWER ------------ (None) > --- PROPULSION ------- (None) > --- UTILITY ---------- Signal Interpreter Hacking Suite > --- WEAPON ----------- Rocket Launcher > --- INVENTORY -------- (None) [Rating: 6] Favorites ----------- Power None Propulsion None Utility Hacking Suite Processor Signal Interpreter Hackware Hacking Suite Weapon Grenade Launcher Ballistic Gun Light Assault Rifle Launcher Grenade Launcher Build | -11 -10 -10 ------- Run | Yrd Mat Min Slots Evolved . | . . . Power . | . . . Propulsion . | . . . Utility . | . . . Weapon . | . . . Parts Attached 7 | . 3 4 Power . | . . . Engine . | . . . Core . | . . . Reactor . | . . . Propulsion . | . . . Treads . | . . . Leg . | . . . Wheel . | . . . Hover . | . . . Flight . | . . . Utility 2 | . 2 . Device . | . . . Storage . | . . . Processor 1 | . 1 . Hackware 1 | . 1 . Protection . | . . . Artifact . | . . . Weapon 5 | . 1 4 Energy Gun . | . . . Energy Cannon . | . . . Ballistic Gun 2 | . . 2 Ballistic Cannon . | . . . Launcher 3 | . 1 2 Special Weapon . | . . . Impact Weapon . | . . . Slashing Weapon . | . . . Piercing Weapon . | . . . Special Melee Weapon . | . . . Unidentified Prototypes . | . . . Parts Lost 3 | . . 3 Power . | . . . Propulsion . | . . . Utility . | . . . Weapon 3 | . . 3 Highest Loss Streak 2 | . . 2 To Critical Strikes . | . . . Average Slot Usage (%) 39 | . 14 43 Processor 12 | . 4 14 Hackware 12 | . 4 14 Ballistic Gun 3 | . . 4 Launcher 10 | . 6 11 Peak Build Rating 6 | . 5 6 Average Rating 4 | . 1 5 On Entrance 1 | . . 5 Naked Turns 42 | . 42 . Heaviest Build 3 | . 3 3 Greatest Support 3 | 3 3 3 Greatest Overweight (x) . | . . . Average Overweight (x) . | . . . Largest Inventory Capacity 5 | 5 5 5 Average Capacity 5 | 5 5 5 Most Carried 1 | . . 1 Average Carried . | . . . Final Capacity 5 | 5 5 5 Final Carried . | . . . Class Distribution -------------------- 100% | Mutant Dominant Class ---------------- Mutant | -10/Materials Mutant | -10/Mines Resources | -11 -10 -10 ----------- Run | Yrd Mat Min Matter Collected 243 | 59 11 173 Remotely . | . . . Salvage Created 142 | . 11 131 Parts 17 | . 3 14 Haulers Intercepted . | . . . Recyclers Shooed . | . . . Parts Field Recycled . | . . . Retrieved Matter . | . . . Parts Self-Destructed . | . . . Prevented . | . . . Kills | -11 -10 -10 ------- Run | Yrd Mat Min Combat Hostiles Destroyed 9 | . . 9 Guns 1 | . . 1 AOE 8 | . . 8 Classes Destroyed 3 | . 1 2 Operator 1 | . 1 . Swarmer 6 | . . 6 Grunt 3 | . . 3 Best Kill Streak 3 | . 1 3 Combat Bots Only 3 | . . 3 Max Kills in Single Turn 3 | . 1 3 Gunslinging . | . . . Exploded 3 | . . 3 Melee . | . . . Uniques/NPCs Destroyed . | . . . Combat | -11 -10 -10 -------- Run | Yrd Mat Min Hostile Shots Fired 33 | . 3 30 Missed 6 | . 1 5 Damage Taken 423 | 2 58 363 Core 260 | 2 38 220 Absorbed by Shields . | . . . Core Remaining (%) 99 | 99 . . Volleys Fired 21 | . 1 20 Largest 2 | . 1 2 Hottest 40 | . 30 40 Shots Fired 26 | . 1 25 Gun 17 | . . 17 Cannon . | . . . Launcher 9 | . 1 8 Special . | . . . Kinetic 17 | . . 17 Thermal . | . . . Explosive 9 | . 1 8 Electromagnetic . | . . . Robot Hit Streak 6 | . 1 6 Robot Miss Streak 5 | . . 5 Penetration Max . | . . . Secondary Targets . | . . . Shots Hit Robots 15 | . 1 14 Core Hits 15 | . 1 14 Critical Kills . | . . . Critical Parts Destroyed . | . . . Critical Strikes . | . . . Melee Attacks . | . . . Impact . | . . . Slashing . | . . . Piercing . | . . . Sneak Attacks . | . . . Combat Hostiles . | . . . Follow-up Attacks . | . . . Damage Inflicted 687 | 5 46 636 Guns 66 | . . 66 Cannons . | . . . Explosions 616 | . 46 570 Melee . | . . . Ramming 5 | 5 . . Kinetic 66 | . . 66 Thermal . | . . . Explosive 616 | . 46 570 Electromagnetic . | . . . Impact . | . . . Slashing . | . . . Piercing . | . . . Highest Corruption . | . . . Average Corruption . | . . . Corruption Purged . | . . . Corruption Blocked . | . . . Overload Shots . | . . . Overflow Damage 3 | . . 3 Projectiles . | . . . Explosions 3 | . . 3 Melee . | . . . Knockbacks . | . . . Impact . | . . . Kinetic . | . . . Secondary . | . . . Self-Inflicted Damage 88 | 2 40 46 Shots 3 | . 1 2 Rammed 1 | 1 . . Targets Rammed 1 | 1 . . Kicked . | . . . Crushed . | . . . Highest Temperature 15 | . . 15 Average Temperature 8 | . . 8 Received Heat Transfer 159 | . . 159 Siege Activations . | . . . Robots Corrupted . | . . . Combat Hostiles . | . . . Parts Fried . | . . . Impact Corruptions . | . . . Robots Melted . | . . . Combat Hostiles . | . . . Parts Melted . | . . . Heat Transferred . | . . . Parts Sabotaged . | . . . Parts Stolen . | . . . Parts Stripped . | . . . Power Chain Reactions . | . . . Alert | -11 -10 -10 ------- Run | Yrd Mat Min Peak Influence 329 | . 204 329 Initial 79 | . . 79 Average 175 | . 118 191 Maximum Alert Level 1 | . 1 1 Low Security (%) 51 | 100 88 42 Level 1 48 | . 11 57 Level 2 . | . . . Level 3 . | . . . Level 4 . | . . . Level 5 . | . . . High Security . | . . . Max Security . | . . . Squads Dispatched 2 | . 2 . Investigation 1 | . 1 . Extermination . | . . . Reinforcement 1 | . 1 . Assault . | . . . Garrison . | . . . Intercept . | . . . Searches Triggered . | . . . Construction Impeded . | . . . Haulers Reinforced . | . . . Active Scanning Responses . | . . . Cargo Convoy Interrupts . | . . . Stealth | -11 -10 -10 --------- Run | Yrd Mat Min Distress Signals 1 | . 1 . Communications Jammed . | . . . Distress Signals . | . . . Times Spotted 20 | . 10 10 Peak Tracking Total 7 | . 7 3 Tactical Retreats 2 | . 2 . Traps | -11 -10 -10 ------- Run | Yrd Mat Min Traps Triggered . | . . . Indirectly . | . . . Trap Hack Attempts . | . . . Triggered . | . . . Disarmed . | . . . Reprogrammed . | . . . Reused . | . . . Traps Extracted . | . . . Installed . | . . . Triggered . | . . . Objects Rigged 1 | . 1 . Machines | -11 -10 -10 ---------- Run | Yrd Mat Min Machines Disabled 2 | . 2 . Max in Single Turn 2 | . 2 . Machines Repaired . | . . . Machines Dismantled . | . . . Machines Sabotaged 1 | . 1 . Overloaded Fab Kills . | . . . Hacking | -11 -10 -10 --------- Run | Yrd Mat Min Machines Accessed 2 | . 2 . Terminals 2 | . 2 . Fabricators . | . . . Repair Stations . | . . . Recycling Units . | . . . Scanalyzers . | . . . Garrison Access . | . . . Total Hacks 9 | . 9 . Successful 4 | . 4 . Failed 5 | . 5 . Catastrophic 1 | . 1 . Database Lockouts . | . . . Manual 9 | . 9 . Terminals 9 | . 9 . Fabricators . | . . . Repair Stations . | . . . Recycling Units . | . . . Scanalyzers . | . . . Garrison Access . | . . . Terminal Hacks . | . . . Fabricator Hacks . | . . . Repair Station Hacks . | . . . Recycling Unit Hacks . | . . . Scanalyzer . | . . . Garrison Access Hacks . | . . . Unauthorized Hacks 4 | . 4 . Terminals 4 | . 4 . Track 1 | . 1 . Botnet 1 | . 1 . Detonate 1 | . 1 . Sabotage 1 | . 1 . Fabricators . | . . . Repair Stations . | . . . Recycling Units . | . . . Scanalyzers . | . . . Garrison Access . | . . . Data Cores Recovered . | . . . Used . | . . . Hacking Detections 2 | . 2 . Full Trace Events 1 | . 1 . Feedback Events . | . . . Feedback Blocked . | . . . Robot Schematics Acquired . | . . . Robots Built . | . . . Authchips . | . . . Time . | . . . Total Robot Build Rating . | . . . Part Schematics Acquired . | . . . Parts Built . | . . . Authchips . | . . . Time . | . . . Total Part Build Rating . | . . . Parts Repaired . | . . . Time . | . . . Parts Recycled . | . . . Recycled Matter . | . . . Retrieved Matter . | . . . Retrieved Components . | . . . Parts Scanalyzed . | . . . Part Schematics Acquired . | . . . Parts Damaged . | . . . Bothacking | -11 -10 -10 ------------ Run | Yrd Mat Min Used RIF Installer . | . . . Robots Hacked . | . . . Non-combat . | . . . Combat . | . . . Robot Hacks Applied . | . . . Relay Couplers Released . | . . . Fabnet Peak Effective % . | . . . Robots Rewired . | . . . Allies Hacked . | . . . Hacks Repelled . | . . . Allies | -11 -10 -10 -------- Run | Yrd Mat Min Total Allies . | . . . Largest Group . | . . . Highest-Rated Group . | . . . Highest-Rated Ally . | . . . Total Orders . | . . . Ally Attacks . | . . . Total Damage . | . . . Kills . | . . . Allies Corrupted . | . . . Allies Melted . | . . . Intel | -11 -10 -10 ------- Run | Yrd Mat Min Robot Analysis Total . | . . . Derelict Logs Recovered 1 | . . 1 Drone Launches . | . . . Drone Recoveries . | . . . Exploration | -11 -10 -10 ------------- Run | Yrd Mat Min Turns Passed 472 | 10 76 386 Spaces Moved 627 | 18 138 471 Core 627 | 18 138 471 Treads . | . . . Legs . | . . . Wheels . | . . . Hover . | . . . Flight . | . . . Fastest Speed 50 | 50 50 50 Average Speed 50 | 50 50 50 Slowest Speed 50 | 50 50 50 Overloaded Moves . | . . . Propulsion Burnouts . | . . . Robots Hopped . | . . . Cave-ins Triggered . | . . . Exploration Rate (%) 39 | 3 41 74 Regions Visited 2 Branch Regions 1 Pre-discovered Areas 1 | . . 1 Known Exits Taken 1 | . 1 . Unknown Exits Taken 1 | 1 . . Scrap Searched 1 | . . 1 Spaces Dug . | . . . Terrain Destroyed 78 | . 5 73 Melee . | . . . Projectile . | . . . AOE 78 | . 5 73 Terrain Rammed . | . . . Walls Destroyed . | . . . Machines Disabled . | . . . Actions | -11 -10 -10 --------- Run | Yrd Mat Min Total 760 | 18 141 601 Wait 104 | . . 104 Move 625 | 17 137 471 Hop . | . . . Pick Up 1 | . . 1 Fast Attach 5 | . 3 2 Attach 2 | . . 2 Detach 1 | . . 1 Swap . | . . . Drop . | . . . Fire 21 | . 1 20 Melee . | . . . Ram 1 | 1 . . Kick . | . . . Crush . | . . . Escape Stasis . | . . . Rewire . | . . . Trap . | . . . Miscellaneous . | . . . Route ------- -11/Scrapyard -10/Materials -10/Mines (discovered 1 exit: *Mat) History --------- Turn | Location | Event 5 | -11/Scrapyard | Discovered new exit (range 12) 11 | -11/Scrapyard | Entered Materials 79 | -10/Materials | Discovered new exit (range 15) 86 | -10/Materials | Identified exit to Mines 87 | -10/Materials | Entered Mines 114 | -10/Mines | Met a Derelict bent on vengeance 183 | -10/Mines | Received a Rocket Launcher from a helpful Derelict 262 | -10/Mines | Found DCF Scrap (10 items) 316 | -10/Mines | Build established: Mutant 384 | -10/Mines | Discovered new exit (range 6) 409 | -10/Mines | Identified exit to Materials 452 | -10/Mines | Core integrity fell below 50% 460 | -10/Mines | Core integrity fell below 20% 473 | -10/Mines | Destroyed self with Rocket Launcher Last Messages --------------- 00262_ Found Lgt. Assault Rifle. 00262_ Found 128 Matter. A note is attached: "With love, from the DCF." 00264_ Acquired 128 matter. 00276_ K-01 Serf collects debris. 00359_ K-01 Serf cleans the Core Extractor. 00375_ Acquired derelict log, extracted data. World map updated: -8/Materials. 00384_ EXIT=FOUND 00385_ Grenade Launcher destroyed. 00389_ S-10 Pest destroyed. 00389_ Destroyed Flight Unit. 00391_ S-10 Pest destroyed. 00396_ Acquired 2 matter. 00398_ Acquired Lgt. Assault Rifle. 00409_ EXIT=IDENTIFIED: MATERIALS 00411_ The unstable cave ceiling collapses. 00457_ Lgt. Assault Rifle destroyed. 00459_ G-34 Mercenary destroyed. 00472_ Lgt. Assault Rifle destroyed. Map ----- +----------------------------------------------------+ | ???????????????????# #?????????????? | | ???????????????????# ########??????????????????? | | ???????????????????# #?????????????????????????? | | ???????????????????# #?????????????????????????? | | ???????????????????# #?????????????????????????? | | ????????????######## #?????????????????????????? | | ????????????# #?????????????????????????? | | ????????????# #######?????????????????????????? | | ????????????# #???????????????????????????????? | | ????????????# #???????????????????????????????? | | ????????????# ##??????????????????????????????? | | ????????????# ##?????????????????????????????? | | ?????????#### #?????????????????????????????? | | ?????????# # #?????????????????????????????? | | ??????????# #?????????????????????????????? | | ??????????# #?????????????????????????????? | | ??????????### #?????????????????????????????? | | ????????????## ##?????????????????????????????? | | ?????????????# ##??????????????????????????????? | | ?????????????# #???????????????????????????????? | | ?????????????# #?????????#####?????????????????? | | ????????###### #????????## ##????????????????? | | ????????# #????????# ##???????????????? | | ????????# #### #???????## #???????????????? | | ????????# ##?# ######### #####??????????## | | ???????## ### @ #??????????# | | ???????# ######## # ##### #??????????# | | ???????# ##??# g ######???# #??????????# | | ???????## #??# *% #????????# #??????????# | | ????????# #??## [#??????????# #???????#### | | ????????## ##### ###????????# #???????# | | ?????????## ## # #????????# #?###???# ### | | ??????????### # #u # #????????# ### #???# #?? | | ?????????????# #= #????????# #???# #?# | | ?????????????#### #* #????????#### #???# #?# | | ???????????????## #[ #???????????# ##??# #?? | | ???????????????# #???????????# #??# #?? | | ???????????????## = #???????????# #### ### | | ????????????????# ##???????????## | | ????????????????# #### #?????????????# ###### | | ??# ?????????# #???##?????????????# #????# | | ??# #### #??????????????????## ##????# | | ???# #???????????????????####?????# | | ?????# #####????????????????????????????? | | ?????## ?????????????????????????????????????? | | ???????????????????????????????????????????????? | | ???????????????????????????????????????????????? | | ???????????????????????????????????????????????? | | ???????????????????????????????????????????????? | | ???????????????????????????????????????????????? | +----------------------------------------------------+ Best States ------------- Heat Dissipation 25 Energy Generation 5 Energy Capacity 100 Matter Stores 256 Matter Capacity 300 Sight Range 16 Terrain Scan Density 10 Evasion (%) 50 Offensive Hacking 10 Item Schematics ----------------- None Robot Schematics ------------------ None Fabricated ------------ Nothing Alien Tech Used ----------------- None Achievements -------------- None Challenges ------------ None Game ------ Seed CompositeWeaponAutogun Manual? 0 Play Time 00:08:35 Cumulative 19.0 hours Start 2024.08.09 @ 18:31:22 End 2024.08.09 @ 18:36:40 Sessions 1 Manual Loads 0 Difficulty Rogue Special Mode None Game No. 93 Rogue 93 Adventurer 0 Explorer 0 Win Type - Total 0 Types 0/0/0/0/0/0/0/0/0 Lore% 27 Gallery% 23 Achievement% 32 Wizard Run 0 Options --------- Layout 0 ASCII 0 Keyboard 0 Movement Arrows Keybinds 0 Fullscreen 2 Font 18/Terminus Map View 76x50 Zoom Use 0% Tactical HUD 1 Map Filters NONE Filters NONE Steam 1 RUN: 3b5c710c-858a-4ee0-8373-b927a6fc8bd6